lending/lending_fUSD_20250819
["ID","MTS","AMOUNT","RATE_DAILY","PERIOD"]
[380250052,1755627128559,-489.7875995,0.00010983,2]
[380250053,1755627128567,-300.0,0.00010993,2]
[380250054,1755627128576,-160.0,0.00010993,2]
[380250055,1755627128586,-200.0,0.00010993,2]
[380250056,1755627128595,-500.0,0.00010993,2]
[380250057,1755627128604,-500.0,0.00010993,2]
[380250058,1755627128614,-522.6803858,0.00010993,2]
[380250059,1755627128623,-500.0,0.00010993,2]
[380250060,1755627128632,-200.0,0.00010993,2]
[380250061,1755627128641,-500.0,0.00010999,2]
[380250062,1755627128651,-259.20926302,0.00010999,2]
[380250063,1755627128661,-1477.0,0.00011,2]
[380250064,1755627128670,-12535.7700533,0.00011,2]
[380250065,1755627128681,-568.29956451,0.00011,2]
[380250066,1755627128697,-855.81683533,0.00011,2]
[380250067,1755627128707,-1911.83322866,0.00011,2]
[380250068,1755627128733,-750.81041459,0.00011,2]
[380250069,1755627128784,-300.0,0.00011,2]
[380250070,1755627128795,-294.84302077,0.00011,2]
[380250071,1755627128806,-1902.76798487,0.00011,2]
[380250072,1755627128817,-625.18630438,0.00011,2]
[380250073,1755627128828,-1391.7294,0.00011,2]
[380250074,1755627128839,-388.0,0.00011,2]
[380250075,1755627132968,-568.25,0.00011,2]
[380250076,1755627135032,-1136.6,0.00011,2]
[380250077,1755627135044,-4914.63074859,0.00011,2]
[380250078,1755627135078,-1367.38287283,0.00011,2]
[380250079,1755627135089,-5731.41317928,0.00011,2]
[380250080,1755627135101,-317.92,0.00011,2]
[380250081,1755627135118,-8981.9109066,0.00011,2]
[380250082,1755627135303,-22750.0,0.00011,2]
[380250083,1755627138425,-1119.01456125,0.00011,2]
[380250084,1755627138436,-921.21632402,0.00011,2]
[380250085,1755627138456,-1607.8772175,0.00011,2]
[380250086,1755627146402,450.28546181,0.00021917,120]
[380250087,1755627222564,4273.77,0.00022999,30]
[380250088,1755627222930,150.0,6.5e-05,2]
[380250089,1755627223731,400.0,0.00022999,30]
[380250090,1755627225620,438.54,0.00022999,30]
[380250091,1755627226109,400.0,0.00022999,30]
[380250092,1755627226184,704.59,0.00022999,30]
[380250093,1755627226379,2324.68,0.00022999,30]
[380250094,1755627226618,3036.35,0.00022999,30]
[380250095,1755627226977,400.0,0.00022999,30]
[380250096,1755627227150,400.0,0.00022999,30]
[380250097,1755627227360,400.0,0.00022999,30]
[380250098,1755627227947,480.27,0.00022999,30]
[380250099,1755627228760,400.0,0.00022999,30]
[380250100,1755627228999,400.0,0.00022999,30]
[380250101,1755627229124,9985.2,0.00022999,30]
[380250102,1755627229183,705.48,0.00022999,30]
[380250103,1755627229386,400.0,0.00022999,30]
[380250104,1755627229728,400.0,0.00022999,30]
[380250105,1755627229778,400.0,0.00022999,30]
[380250106,1755627229849,1675.02,0.00022999,30]
[380250107,1755627229910,2291.78,0.00022999,30]
[380250108,1755627230004,400.0,0.00022999,30]
[380250109,1755627230048,6512.14,0.00022999,30]
[380250110,1755627230123,2329.22,0.00022999,30]
[380250111,1755627230199,708.51,0.00022999,30]
[380250112,1755627231083,400.0,0.00022999,30]
[380250113,1755627231201,400.0,0.00022999,30]
[380250114,1755627231405,1424.84,0.00022999,30]
[380250115,1755627231544,1319.58,0.00022999,30]
[380250116,1755627232031,400.0,0.00022999,30]
[380250117,1755627232731,400.0,0.00022999,30]
[380250118,1755627233011,400.0,0.00022999,30]
[380250119,1755627233813,400.0,0.00022999,30]
[380250120,1755627233913,16320.28,0.00022999,30]
[380250121,1755627234085,1563.53,0.00022999,30]
[380250122,1755627234172,400.0,0.00022999,30]
[380250123,1755627234664,379.47,0.00022999,30]
[380250124,1755627236571,400.0,0.00022999,30]
[380250125,1755627236655,400.0,0.00022999,30]
[380250126,1755627237568,2590.26,0.00022999,30]
[380250127,1755627238368,1733.21,0.00022999,30]
[380250128,1755627238655,400.0,0.00022999,30]
[380250129,1755627239079,3263.22,0.00022999,30]
[380250130,1755627239135,400.0,0.00022999,30]
[380250131,1755627239189,450.29,0.00022999,30]
[380250132,1755627239802,966.53,0.00022999,30]
[380250133,1755627240430,920.28,0.00022999,30]
[380250134,1755627240856,3298.47,0.00022999,30]
[380250135,1755627241014,404.6,0.00022999,30]
[380250136,1755627241066,400.0,0.00022999,30]
[380250137,1755627241127,400.0,0.00022999,30]
[380250138,1755627241179,3477.28,0.00022999,30]
[380250139,1755627241828,3204.29,0.00022999,30]
[380250140,1755627241986,2980.94,0.00022999,30]
[380250141,1755627242148,400.0,0.00022999,30]
[380250142,1755627242372,400.0,0.00022999,30]
[380250143,1755627242630,2526.93,0.00022999,30]
[380250144,1755627242767,400.0,0.00022999,30]
[380250145,1755627242889,400.0,0.00022999,30]
[380250146,1755627243349,4989.31,0.00022999,30]
[380250147,1755627243658,11560.1,0.00022999,30]
[380250148,1755627244008,400.0,0.00022999,30]
[380250149,1755627244111,5259.61,0.00022999,30]
[380250150,1755627244179,400.0,0.00022999,30]
[380250151,1755627244696,472.93,0.00022999,30]
[380250152,1755627245051,400.0,0.00022999,30]
[380250153,1755627245111,5423.83,0.00022999,30]
[380250154,1755627245298,400.0,0.00022999,30]
[380250155,1755627245684,5366.8,0.00022999,30]
[380250156,1755627247366,1657.81,0.00022999,30]
[380250157,1755627247737,400.0,0.00022999,30]
[380250158,1755627247823,1351.6,0.00022999,30]
[380250159,1755627248132,400.0,0.00022999,30]
[380250160,1755627248201,400.0,0.00022999,30]
[380250161,1755627248587,400.0,0.00022999,30]
[380250162,1755627248996,400.0,0.00022999,30]
[380250163,1755627249088,1096.68,0.00022999,30]
[380250164,1755627249245,1623.35,0.00022999,30]
[380250165,1755627249441,400.0,0.00022999,30]
[380250166,1755627249727,513.75,0.00022999,30]
[380250167,1755627249912,5288.86,0.00022999,30]
[380250168,1755627249963,3704.41,0.00022999,30]
[380250169,1755627250050,400.0,0.00022999,30]
[380250170,1755627250109,400.0,0.00022999,30]
[380250171,1755627250736,400.0,0.00022999,30]
[380250172,1755627251197,400.0,0.00022999,30]
[380250173,1755627251701,2386.81,0.00022999,30]
[380250174,1755627252144,400.0,0.00022999,30]
[380250175,1755627252574,3415.89,0.00022999,30]
[380250176,1755627252653,400.0,0.00022999,30]
[380250177,1755627252822,1696.79,0.00022999,30]
[380250178,1755627252878,2641.54,0.00022999,30]
[380250179,1755627253312,539.64,0.00022999,30]
[380250180,1755627253676,400.0,0.00022999,30]
[380250181,1755627254263,400.0,0.00022999,30]
[380250182,1755627254314,3273.25,0.00022999,30]
[380250183,1755627254392,4242.58,0.00022999,30]
[380250184,1755627254946,400.0,0.00022999,30]
[380250185,1755627256494,1235.29,0.00022999,30]
[380250186,1755627256675,5011.3,0.00022999,30]
[380250187,1755627257102,5088.03,0.00022999,30]
[380250188,1755627257160,428.43,0.00022999,30]
[380250189,1755627257432,400.0,0.00022999,30]
[380250190,1755627259121,400.0,0.00022999,30]
[380250191,1755627259278,2353.61,0.00022999,30]
[380250192,1755627259596,400.0,0.00022999,30]
[380250193,1755627260274,1044.62,0.00022999,30]
[380250194,1755627260377,2331.79,0.00022999,30]
[380250195,1755627260472,6952.48,0.00022999,30]
[380250196,1755627260521,3204.56,0.00022999,30]
[380250197,1755627260612,400.0,0.00022999,30]
[380250198,1755627260856,3286.15,0.00022999,30]
[380250199,1755627260945,400.0,0.00022999,30]
[380250200,1755627261599,400.0,0.00022999,30]
[380250201,1755627261839,493.38,0.00022999,30]
[380250202,1755627262260,3067.03,0.00022999,30]
[380250203,1755627263066,408.49,0.00022999,30]
[380250204,1755627263861,2845.29,0.00022999,30]
[380250205,1755627264011,593.32,0.00022999,30]
[380250206,1755627264189,1161.88,0.00022999,30]
[380250207,1755627264524,2865.08,0.00022999,30]
[380250208,1755627266319,2000.45,0.00022999,30]
[380250209,1755627269036,6334.98,0.00022999,30]
[380250210,1755627269086,442.71,0.00022999,30]
[380250211,1755627269532,1476.47,0.00022999,30]
[380250212,1755627270206,5000.87,0.00022999,30]
[380250213,1755627271111,2409.53,0.00022999,30]
[380250214,1755627271180,400.0,0.00022999,30]
[380250215,1755627271250,4248.25,0.00022999,30]
[380250216,1755627271321,400.0,0.00022999,30]
[380250217,1755627271427,3013.91,0.00022999,30]
[380250218,1755627271513,1856.03,0.00022999,30]
[380250219,1755627273063,6071.03,0.00022999,30]
[380250220,1755627273790,7998.91,0.00022999,30]
[380250221,1755627275014,400.0,0.00022999,30]
[380250222,1755627275122,7338.01,0.00022999,30]
[380250223,1755627276339,400.0,0.00022999,30]
[380250224,1755627276422,844.26,0.00022999,30]
[380250225,1755627277123,1748.21,0.00022999,30]
[380250226,1755627277199,400.0,0.00022999,30]
[380250227,1755627277386,1748.21,0.00022999,30]
[380250228,1755627277926,400.0,0.00022999,30]
[380250229,1755627278073,1748.21,0.00022999,30]
[380250230,1755627278516,1748.21,0.00022999,30]
[380250231,1755627279774,1748.21,0.00022999,30]
[380250232,1755627279961,1791.51,0.00022999,30]
[380250233,1755627280030,10304.99,0.00022999,30]
[380250234,1755627280077,1748.21,0.00022999,30]
[380250235,1755627280180,1601.54,0.00022999,30]
[380250236,1755627280228,1748.21,0.00022999,30]
[380250237,1755627280314,3581.83,0.00022999,30]
[380250238,1755627280390,1748.21,0.00022999,30]
[380250239,1755627280874,1748.21,0.00022999,30]
[380250240,1755627281159,1748.21,0.00022999,30]
[380250241,1755627281350,1748.21,0.00022999,30]
[380250242,1755627281528,1748.21,0.00022999,30]
[380250243,1755627281695,1748.21,0.00022999,30]
[380250244,1755627282078,1748.21,0.00022999,30]
[380250245,1755627282255,1748.21,0.00022999,30]
[380250246,1755627282347,400.0,0.00022999,30]
[380250247,1755627282445,1748.21,0.00022999,30]
[380250248,1755627282642,1748.21,0.00022999,30]
[380250249,1755627282760,645.69,0.00022999,30]
[380250250,1755627282903,1748.21,0.00022999,30]
[380250251,1755627282993,1748.21,0.00022999,30]
[380250252,1755627283099,1748.21,0.00022999,30]
[380250253,1755627283193,1748.21,0.00022999,30]
[380250254,1755627283432,1748.21,0.00022999,30]
[380250255,1755627283603,1748.21,0.00022999,30]
[380250256,1755627283671,400.0,0.00022999,30]
[380250257,1755627283841,534.97392938,0.00022999,30]
[380250258,1755627283944,400.0,0.00022999,30]
[380250259,1755627284181,1748.41323512,0.00022999,30]
[380250260,1755627284229,400.0,0.00022999,30]
[380250261,1755627284442,1128.59,0.00022999,30]
[380250262,1755627284486,2939.6,0.00022999,30]
[380250263,1755627284767,2705.74,0.00022999,30]
[380250264,1755627284847,2332.98,0.00022999,30]
[380250265,1755627286919,3763.71,0.00022999,30]
[380250266,1755627287117,400.0,0.00022999,30]
[380250267,1755627287404,6995.16,0.00022999,30]
[380250268,1755627287568,881.4,0.00022999,30]
[380250269,1755627287615,400.0,0.00022999,30]
[380250270,1755627288040,3651.6,0.00022999,30]
[380250271,1755627289299,2540.73,0.00022999,30]
[380250272,1755627289372,1738.83,0.00022999,30]
[380250273,1755627289641,1323.87,0.00022999,30]
[380250274,1755627290659,607.65,0.00022999,30]
[380250275,1755627290859,1916.06,0.00022999,30]
[380250276,1755627291483,400.0,0.00022999,30]
[380250277,1755627291936,400.0,0.00022999,30]
[380250278,1755627291986,3534.94,0.00022999,30]
[380250279,1755627293232,3027.14,0.00022999,30]
[380250280,1755627293394,400.0,0.00022999,30]
[380250281,1755627293484,2607.39,0.00022999,30]
[380250282,1755627293534,9264.47,0.00022999,30]
[380250283,1755627293896,1064.45,0.00022999,30]
[380250284,1755627294479,4840.27,0.00022999,30]
[380250285,1755627294601,3282.1,0.00022999,30]
[380250286,1755627296288,400.0,0.00022999,30]
[380250287,1755627296381,1333.96,0.00022999,30]
[380250288,1755627297177,2615.79,0.00022999,30]
[380250289,1755627297235,856.38,0.00022999,30]
[380250290,1755627298092,2392.43,0.00022999,30]
[380250291,1755627298664,3630.2,0.00022999,30]
[380250292,1755627298730,400.0,0.00022999,30]
[380250293,1755627298802,3396.38,0.00022999,30]
[380250294,1755627299019,400.0,0.00022999,30]
[380250295,1755627301366,1753.41,0.00022999,30]
[380250296,1755627302224,4537.83,0.00022999,30]
[380250297,1755627302351,2357.14,0.00022999,30]
[380250298,1755627303314,1259.92,0.00022999,30]
[380250299,1755627304653,2039.69,0.00022999,30]
[380250300,1755627304752,2692.57,0.00022999,30]
[380250301,1755627305773,1192.96,0.00022999,30]
[380250302,1755627305887,400.0,0.00022999,30]
[380250303,1755627306196,2227.82,0.00022999,30]
[380250304,1755627306468,3388.0,0.00022999,30]
[380250305,1755627306528,400.0,0.00022999,30]
[380250306,1755627307412,400.0,0.00022999,30]
[380250307,1755627308133,4621.83,0.00022999,30]
[380250308,1755627308408,3132.17,0.00022999,30]
[380250309,1755627308485,3799.5,0.00022999,30]
[380250310,1755627308572,3291.85,0.00022999,30]
[380250311,1755627309749,2929.43,0.00022999,30]
[380250312,1755627310303,400.0,0.00022999,30]
[380250313,1755627310528,2672.76,0.00022999,30]
[380250314,1755627310853,400.0,0.00022999,30]
[380250315,1755627310964,1713.6,0.00022999,30]
[380250316,1755627312541,400.0,0.00022999,30]
[380250317,1755627312616,508.99,0.00022999,30]
[380250318,1755627312859,1128.34,0.00022999,30]
[380250319,1755627313352,7091.76,0.00022999,30]
[380250320,1755627313418,2437.67,0.00022999,30]
[380250321,1755627313625,400.0,0.00022999,30]
[380250322,1755627313805,1763.48,0.00022999,30]
[380250323,1755627314397,787.46,0.00022999,30]
[380250324,1755627314508,1004.49,0.00022999,30]
[380250325,1755627314829,1612.16,0.00022999,30]
[380250326,1755627315712,12401.23,0.00022999,30]
[380250327,1755627315964,3653.97,0.00022999,30]
[380250328,1755627316183,400.0,0.00022999,30]
[380250329,1755627316316,22764.82,0.00022999,30]
[380250330,1755627316910,2266.36,0.00022999,30]
[380250331,1755627317968,400.0,0.00022999,30]
[380250332,1755627318282,821.75,0.00022999,30]
[380250333,1755627318550,544.29003957,0.00022999,30]
[380250334,1755627318990,1265.91,0.00022999,30]
[380250335,1755627320049,7640.74,0.00022999,30]
[380250336,1755627320230,400.0,0.00022999,30]
[380250337,1755627320278,666.53,0.00022999,30]
[380250338,1755627320644,1254.07,0.00022999,30]
[380250339,1755627320873,400.0,0.00022999,30]
[380250340,1755627321018,2582.57,0.00022999,30]
[380250341,1755627321076,400.0,0.00022999,30]
[380250342,1755627321496,400.0,0.00022999,30]
[380250343,1755627322056,2833.14,0.00022999,30]
[380250344,1755627322243,2689.28,0.00022999,30]
[380250345,1755627323752,423.51,0.00022999,30]
[380250346,1755627323843,400.0,0.00022999,30]
[380250347,1755627325438,400.0,0.00022999,30]
[380250348,1755627325584,404.42,0.00022999,30]
[380250349,1755627325721,1956.95,0.00022999,30]
[380250350,1755627326529,400.0,0.00022999,30]
[380250351,1755627326796,500.0,0.00022999,30]
[380250352,1755627326921,500.0,0.00022999,30]
[380250353,1755627327005,400.0,0.00022999,30]
[380250354,1755627327068,500.0,0.00022999,30]
[380250355,1755627327214,500.0,0.00022999,30]
[380250356,1755627327422,500.0,0.00022999,30]
[380250357,1755627327597,11367.8,0.00022999,30]
[380250358,1755627327716,500.0,0.00022999,30]
[380250359,1755627327860,400.0,0.00022999,30]
[380250360,1755627327935,10679.5,0.00022999,30]
[380250361,1755627328088,500.0,0.00022999,30]
[380250362,1755627328170,400.0,0.00022999,30]
[380250363,1755627328524,400.0,0.00022999,30]
[380250364,1755627328614,500.0,0.00022999,30]
[380250365,1755627328709,1376.51,0.00022999,30]
[380250366,1755627328877,500.0,0.00022999,30]
[380250367,1755627328930,2424.66,0.00022999,30]
[380250368,1755627329045,640.86993695,0.00022999,30]
[380250369,1755627329599,2563.01,0.00022999,30]
[380250370,1755627329877,400.0,0.00022999,30]
[380250371,1755627330258,538.77,0.00022999,30]
[380250372,1755627330757,2595.85,0.00022999,30]
[380250373,1755627331002,6608.18,0.00022999,30]
[380250374,1755627331331,1166.43,0.00022999,30]
[380250375,1755627331439,501.03,0.00022999,30]
[380250376,1755627331547,2856.74,0.00022999,30]
[380250377,1755627331830,3312.375675,0.00022166,30]
[380250378,1755627331940,400.0,0.00022999,30]
[380250379,1755627331988,400.0,0.00022999,30]
[380250380,1755627332084,3312.375675,0.00020333,30]
[380250381,1755627332267,3312.375675,0.000185,30]
[380250382,1755627332890,3998.12,0.00022999,30]
[380250383,1755627333100,400.0,0.00022999,30]
[380250384,1755627334925,450.57,0.00022999,30]
[380250385,1755627335152,400.0,0.00022999,30]
[380250386,1755627335472,400.0,0.00022999,30]
[380250387,1755627335728,17918.02,0.00022999,30]
[380250388,1755627335976,5365.51,0.00022999,30]
[380250389,1755627337256,400.0,0.00022999,30]
[380250390,1755627338056,400.0,0.00022999,30]
[380250391,1755627338133,400.0,0.00022999,30]
[380250392,1755627338239,400.0,0.00022999,30]
[380250393,1755627338605,692.8,0.00022999,30]
[380250394,1755627338893,400.0,0.00022999,30]
[380250395,1755627339012,692.8,0.00022999,30]
[380250396,1755627339073,810.71,0.00022999,30]
[380250397,1755627339540,692.8,0.00022999,30]
[380250398,1755627339604,3116.92,0.00022999,30]
[380250399,1755627339682,692.8,0.00022999,30]
[380250400,1755627339744,400.0,0.00022999,30]
[380250401,1755627339820,4226.78,0.00022999,30]
[380250402,1755627339870,2818.48,0.00022999,30]
[380250403,1755627339938,692.8,0.00022999,30]
[380250404,1755627339992,2892.18,0.00022999,30]
[380250405,1755627340307,692.8,0.00022999,30]
[380250406,1755627340417,692.8,0.00022999,30]
[380250407,1755627340464,400.0,0.00022999,30]
[380250408,1755627340795,692.8,0.00022999,30]
[380250409,1755627340899,692.8,0.00022999,30]
[380250410,1755627340977,400.0,0.00022999,30]
[380250411,1755627341294,400.0,0.00022999,30]
[380250412,1755627341340,2832.52,0.00022999,30]
[380250413,1755627341385,1849.05,0.00022999,30]
[380250414,1755627341482,692.8,0.00022999,30]
[380250415,1755627341645,9223.97,0.00022999,30]
[380250416,1755627341721,227.331547,0.00022166,30]
[380250417,1755627341790,692.8,0.00022999,30]
[380250418,1755627341909,227.331547,0.00020333,30]
[380250419,1755627341960,692.8,0.00022999,30]
[380250420,1755627342069,227.331547,0.000185,30]
[380250421,1755627342114,692.8,0.00022999,30]
[380250422,1755627342337,692.8,0.00022999,30]
[380250423,1755627342451,692.8,0.00022999,30]
[380250424,1755627342711,692.8,0.00022999,30]
[380250425,1755627342786,1645.9,0.00022999,30]
[380250426,1755627343128,2382.7,0.00022999,30]
[380250427,1755627343211,692.8,0.00022999,30]
[380250428,1755627343412,427.48,0.00022999,30]
[380250429,1755627343479,692.8,0.00022999,30]
[380250430,1755627343571,2987.04,0.00022999,30]
[380250431,1755627343653,692.8,0.00022999,30]
[380250432,1755627343700,400.0,0.00022999,30]
[380250433,1755627343765,4989.95,0.00022999,30]
[380250434,1755627343879,692.8,0.00022999,30]
[380250435,1755627344059,692.8,0.00022999,30]
[380250436,1755627344106,400.0,0.00022999,30]
[380250437,1755627344202,400.0,0.00022999,30]
[380250438,1755627344542,692.8,0.00022999,30]
[380250439,1755627345844,692.8,0.00022999,30]
[380250440,1755627345949,693.41,0.00022999,30]
[380250441,1755627346025,692.9863666,0.00022999,30]
[380250442,1755627346152,1699.99,0.00022999,30]
[380250443,1755627346346,684.59,0.00022999,30]
[380250444,1755627346471,400.0,0.00022999,30]
[380250445,1755627348022,798.24,0.00022999,30]
[380250446,1755627348413,1138.92,0.00022999,30]
[380250447,1755627348464,400.0,0.00022999,30]
[380250448,1755627348516,363.7737044,0.00022999,30]
[380250449,1755627348797,1062.75,0.00022999,30]
[380250450,1755627349602,400.0,0.00022999,30]
[380250451,1755627349906,2256.86,0.00022999,30]
[380250452,1755627350195,400.0,0.00022999,30]
[380250453,1755627350434,5409.83,0.00022999,30]
[380250454,1755627350578,400.0,0.00022999,30]
[380250455,1755627350970,499.61,0.00022999,30]
[380250456,1755627351339,1748.77,0.00022999,30]
[380250457,1755627351496,5903.95,0.00022999,30]
[380250458,1755627351600,567.89,0.00022999,30]
[380250459,1755627352487,400.0,0.00022999,30]
[380250460,1755627352796,1573.1,0.00022999,30]
[380250461,1755627353253,10847.06,0.00022999,30]
[380250462,1755627353691,12630.35,0.00022999,30]
[380250463,1755627353919,400.0,0.00022999,30]
[380250464,1755627354391,467.16,0.00022999,30]
[380250465,1755627354741,628.85,0.00022999,30]
[380250466,1755627355059,3414.8,0.00022999,30]
[380250467,1755627355639,7132.59,0.00022999,30]
[380250468,1755627356710,400.0,0.00022999,30]
[380250469,1755627356757,2249.21,0.00022999,30]
[380250470,1755627356828,400.0,0.00022999,30]
[380250471,1755627357331,400.0,0.00022999,30]
[380250472,1755627357408,1768.85,0.00022999,30]
[380250473,1755627358199,1417.52,0.00022999,30]
[380250474,1755627358262,400.0,0.00022999,30]
[380250475,1755627358372,3196.52,0.00022999,30]
[380250476,1755627359263,1376.81,0.00022999,30]
[380250477,1755627359320,973.9,0.00022999,30]
[380250478,1755627359416,3026.93,0.00022999,30]
[380250479,1755627359540,1016.67,0.00022999,30]
[380250480,1755627359932,402.9461437,0.00022999,30]
[380250481,1755627360029,838.21,0.00022999,30]
[380250482,1755627360238,14399.62,0.00022999,30]
[380250483,1755627360520,400.0,0.00022999,30]
[380250484,1755627360740,400.0,0.00022999,30]
[380250485,1755627361259,4281.01,0.00022999,30]
[380250486,1755627361509,400.0,0.00022999,30]
[380250487,1755627361715,1434.09,0.00022999,30]
[380250488,1755627361957,480.98,0.00022999,30]
[380250489,1755627362173,4300.0,0.00022999,30]
[380250490,1755627363133,2405.76,0.00022999,30]
[380250491,1755627363545,2789.69,0.00022999,30]
[380250492,1755627363635,1249.5,0.00022999,30]
[380250493,1755627364741,613.02,0.00022999,30]
[380250494,1755627366188,400.0,0.00022999,30]
[380250495,1755627367405,400.0,0.00022999,30]
[380250496,1755627367461,795.16,0.00022999,30]
[380250497,1755627367567,400.0,0.00022999,30]
[380250498,1755627368428,3764.893717,0.00022166,30]
[380250499,1755627368575,654.79,0.00022999,30]
[380250500,1755627368621,400.0,0.00022999,30]
[380250501,1755627368849,3764.893717,0.00020333,30]
[380250502,1755627368988,3764.893717,0.000185,30]
[380250503,1755627369081,400.0,0.00022999,30]
[380250504,1755627369163,2821.62,0.00022999,30]
[380250505,1755627369457,400.0,0.00022999,30]
[380250506,1755627370115,1343.48,0.00022999,30]
[380250507,1755627370356,3081.33,0.00022999,30]
[380250508,1755627371448,533.72,0.00022999,30]
[380250509,1755627372120,1423.59,0.00022999,30]
[380250510,1755627372187,400.0,0.00022999,30]
[380250511,1755627372236,400.0,0.00022999,30]
[380250512,1755627372310,5230.12,0.00022999,30]
[380250513,1755627372361,544.46,0.00022999,30]
[380250514,1755627372640,2344.73,0.00022999,30]
[380250515,1755627372755,400.0,0.00022999,30]
[380250516,1755627372844,400.0,0.00022999,30]
[380250517,1755627372892,400.0,0.00022999,30]
[380250518,1755627372947,956.93,0.00022999,30]
[380250519,1755627373050,2723.23,0.00022999,30]
[380250520,1755627373462,4391.72,0.00022999,30]
[380250521,1755627373526,5957.24,0.00022999,30]
[380250523,1755627374002,3932.51,0.00022999,30]
[380250524,1755627374058,631.3,0.00022999,30]
[380250525,1755627374117,400.0,0.00022999,30]
[380250526,1755627375008,1819.94,0.00022999,30]
[380250527,1755627375962,901.0,0.00022999,30]
[380250528,1755627376153,2924.79,0.00022999,30]
[380250529,1755627376223,2123.28,0.00022999,30]
[380250530,1755627376853,659.25,0.00022999,30]
[380250531,1755627378802,400.0,0.00022999,30]
[380250532,1755627379399,5818.07,0.00022999,30]
[380250533,1755627379727,371.1310995,0.00022999,30]
[380250534,1755627380370,2226.89,0.00022999,30]
[380250535,1755627380595,1488.26,0.00022999,30]
[380250536,1755627381273,500.0,0.00022999,30]
[380250537,1755627381324,674.96,0.00022999,30]
[380250538,1755627381415,1100.63,0.00022999,30]
[380250539,1755627381477,1451.92,0.00022999,30]
[380250540,1755627381627,500.0,0.00022999,30]
[380250541,1755627381881,400.0,0.00022999,30]
[380250542,1755627381997,400.0,0.00022999,30]
[380250543,1755627382100,3552.27,0.00022999,30]
[380250544,1755627382375,2528.78,0.00022999,30]
[380250545,1755627382511,400.0,0.00022999,30]
[380250546,1755627382982,1534.96,0.00022999,30]
[380250547,1755627383710,541.78,0.00022999,30]
[380250548,1755627384880,3034.03,0.00022999,30]
[380250549,1755627385134,6419.49,0.00022999,30]
[380250550,1755627385260,3404.26,0.00022999,30]
[380250551,1755627385318,728.19,0.00022999,30]
[380250552,1755627385516,400.0,0.00022999,30]